Cogmind - Beta 14 @@@ ROGUE MODE // 2024.11.24 @ 03:32:37 Player: naththebg Result: Destroyed by H-88 Terminator with KE Penetrator Performance ------------- Evolutions (8) 4000 Regions Visited (13) 2600 Robots Destroyed (309) 1545 Value Destroyed (13563) 13563 Prototype IDs (32) 640 Alien Tech Used (2) 400 Bonus (4873) 4873 TOTAL SCORE: 27621 Bonus ------- High Alert Combat Kills 4598 Met Zhirov 300 Friendly Fire -25 Cogmind --------- Core Integrity 0/1450 Matter 116/300 Energy 60/100 System Corruption 30% Temperature Cool (0) Movement Core (50) Location -2/Research Parts ------- > --- POWER (3) -------- (None) > --- PROPULSION (6) --- (None) > --- UTILITY (8) ------ (None) > --- WEAPON (6) ------- (None) > --- INVENTORY (5) ---- Micro Antimatter Reactor Advanced Heat Sink Experimental Energy Well (273) Linear Accelerator Peak State ------------ > --- POWER ------------ Graviton Reactor Graviton Reactor Graviton Reactor > --- PROPULSION ------- Spiked Heavy Treads Centrium Wheel Centrium Wheel Centrium Wheel Centrium Wheel > --- UTILITY ---------- Advanced Cryofiber Web Advanced Heat Sink Advanced Heat Sink Large Storage Unit Layered Heavy Armor Plating Advanced Thermal Shield Advanced Shield Generator > --- WEAPON ----------- Heavy Gauss Cannon Hypervelocity Mass Driver Hypervelocity Mass Driver Linear Accelerator > --- INVENTORY -------- Micro Antimatter Reactor Graviton Reactor Graviton Reactor Medium Treads Wheel Wheel Centrium Wheel Advanced Power Amplifier Advanced Cryofiber Web Improved Heat Sink Advanced Heat Sink Compact Matter Pod Transdimensional Reconstructor Hypervelocity Mass Driver Hypervelocity Mass Driver [Rating: 150] Favorites ----------- Power Graviton Reactor Engine Light Angular Momentum Engine Power Core Micro Nuclear Core Reactor Graviton Reactor Propulsion Centrium Wheel Treads Light Treads Wheel Centrium Wheel Hover Unit Antigrav Array Flight Unit Cooled Nuclear Pulse Thruster Utility Large Storage Unit Device Advanced Cryofiber Web Storage Large Storage Unit Processor Advanced Targeting Computer Protection Improved Utility Shielding Weapon Advanced Assault Cannon Energy Gun Quantum Rifle Energy Cannon Nova Cannon Ballistic Gun Coil Gun Ballistic Cannon Advanced Assault Cannon Launcher Fusion Bomb Launcher Slashing Weapon Greatsword Build | -11 -10 -9 -8 -7 -6 -5 -4 -4 -4 -4 -3 -3 -2 ------- Run | Yrd Mat Mat Mat Fac Fac Fac Fac Upp Upp Zhi Pro Res Res Slots Evolved 16 | . . 2 2 2 2 2 2 . . . . 2 2 Power 2 | . . . . . 1 1 . . . . . . . Propulsion 4 | . . . 1 1 . . 1 . . . . 1 . Utility 6 | . . 1 1 . 1 1 1 . . . . 1 . Weapon 4 | . . 1 . 1 . . . . . . . . 2 Parts Attached 302 | 6 2 12 39 10 16 7 51 17 1 14 3 94 30 Power 51 | 1 . 2 9 1 6 . 11 4 . 1 . 14 2 Engine 20 | 1 . 2 6 . 3 . 5 1 . . . 1 1 Core 13 | . . . 3 1 3 . 3 3 . . . . . Reactor 18 | . . . . . . . 3 . . 1 . 13 1 Propulsion 72 | 2 . 2 11 3 3 3 14 2 . 2 . 21 9 Treads 38 | 2 . 2 11 3 3 3 3 . . . . 8 3 Leg . | . . . . . . . . . . . . . . Wheel 22 | . . . . . . . 11 2 . 1 . 8 . Hover 3 | . . . . . . . . . . . . 1 2 Flight 9 | . . . . . . . . . . 1 . 4 4 Utility 102 | 1 1 2 9 3 6 1 15 7 1 4 2 43 7 Device 70 | . 1 . 3 3 4 1 14 6 1 3 2 29 3 Storage 7 | 1 . . 1 . . . . . . 1 . 2 2 Processor 8 | . . . 2 . 1 . . . . . . 4 1 Hackware . | . . . . . . . . . . . . . . Protection 17 | . . 2 3 . 1 . 1 1 . . . 8 1 Artifact . | . . . . . . . . . . . . . . Weapon 77 | 2 1 6 10 3 1 3 11 4 . 7 1 16 12 Energy Gun 7 | 1 . 1 . . . . 2 1 . 2 . . . Energy Cannon 2 | . . . . . . . . . . . . 1 1 Ballistic Gun 14 | 1 1 4 1 . . . 1 2 . 3 1 . . Ballistic Cannon 45 | . . . 9 3 1 3 8 1 . 2 . 8 10 Launcher 7 | . . 1 . . . . . . . . . 5 1 Special Weapon . | . . . . . . . . . . . . . . Impact Weapon . | . . . . . . . . . . . . . . Slashing Weapon 2 | . . . . . . . . . . . . 2 . Piercing Weapon . | . . . . . . . . . . . . . . Special Melee Weapon . | . . . . . . . . . . . . . . Unidentified Prototypes 15 | . . 1 . . . . 2 . . 4 . 6 2 Parts Lost 103 | . . . 8 . 5 7 21 4 . . 1 41 16 Power 15 | . . . 2 . 1 . 5 . . . . 6 1 Propulsion 22 | . . . 2 . 1 4 2 . . . . 6 7 Utility 39 | . . . 3 . 2 . 8 1 . . 1 19 5 Weapon 27 | . . . 1 . 1 3 6 3 . . . 10 3 Highest Loss Streak 11 | . . . 6 . 2 4 10 11 . . 1 7 8 To Critical Strikes 2 | . . . . . . . 1 . . . . 1 . Average Slot Usage (%) 88 | . 93 91 96 100 99 90 85 96 100 85 99 80 37 Engine 3 | . 14 11 7 . 3 5 4 2 . . . . . Core 4 | . . . . 7 9 5 5 9 15 11 10 . . Reactor 4 | . . . . . . . 3 2 . 3 5 12 . Treads 13 | . 28 22 25 30 26 19 5 . . . . 9 3 Wheel 8 | . . . . . . . 14 26 26 26 26 8 . Device 16 | . 8 11 9 15 18 17 21 20 21 21 22 18 5 Storage 6 | . 14 11 9 7 6 5 5 5 5 5 5 5 3 Processor 5 | . . . 9 7 6 5 5 5 5 5 3 4 5 Protection 3 | . . 3 7 . 1 5 3 4 5 5 5 2 2 Ballistic Gun 4 | . 24 31 1 . . . 2 9 10 . 10 1 . Ballistic Cannon 14 | . . . 25 30 25 22 12 4 5 . 10 11 2 Peak Build Rating 150 | 6 7 17 34 45 61 64 124 118 120 125 122 150 105 Average Rating 78 | 4 6 15 24 43 56 59 87 111 118 105 119 127 67 On Entrance 60 | . 6 7 17 34 43 59 51 85 118 120 118 122 68 Naked Turns 9 | . . . . . . . . . . . . . 9 Heaviest Build 151 | 13 15 25 48 51 71 72 127 100 91 100 102 151 39 Greatest Support 210 | 40 40 40 62 92 114 114 80 80 80 80 80 203 210 Greatest Overweight (x) 6 | . . . 1 . . 1 6 1 1 1 1 4 1 Average Overweight (x) . | . . . . . . . . . 1 . 1 . . Largest Inventory Capacity 15 | 8 8 8 15 15 15 15 15 15 15 15 15 15 5 Average Capacity 13 | 7 8 8 11 15 15 15 15 15 15 15 15 14 5 Most Carried 15 | 6 8 8 15 15 15 14 15 15 15 15 15 15 5 Average Carried 12 | 3 7 7 9 14 13 12 13 13 14 14 14 12 3 Final Capacity 15 | 8 8 8 15 15 15 15 15 15 15 15 15 5 5 Final Carried 15 | 6 8 8 15 15 12 11 15 15 15 15 15 5 4 Class Distribution -------------------- 37% | Gunner 29% | Tank 18% | Mutant 7% | Scavenger-Tank Dominant Class ---------------- Mutant | -10/Materials Gunner | -9/Materials Tank | -8/Materials Gunner | -7/Factory Gunner | -6/Factory Gunner | -5/Factory Gunner | -4/Factory Tank | -4/Upper Caves Tank | -4/Upper Caves Mutant | -4/Zhirov Tank | -3/Proximity Caves Tank | -3/Research Mutant | -2/Research Resources | -11 -10 -9 -8 -7 -6 -5 -4 -4 -4 -4 -3 -3 -2 ----------- Run | Yrd Mat Mat Mat Fac Fac Fac Fac Upp Upp Zhi Pro Res Res Matter Collected 13487 | 234 121 384 1870 384 865 607 2361 540 83 82 463 5224 269 Remotely 4356 | . . . 372 307 578 . 1607 78 . . . 1414 . Salvage Created 12418 | . 146 647 1354 317 645 455 1579 301 78 429 306 5756 405 Parts 536 | . 9 42 82 17 16 20 69 7 1 6 23 227 17 Haulers Intercepted 7 | . . . 4 1 . 1 . . . . . 1 . Recyclers Shooed 10 | . . 1 1 . . 1 . . . . . 6 1 Parts Field Recycled . | . . . . . . . . . . . . . . Retrieved Matter . | . . . . . . . . . . . . . . Parts Self-Destructed 27 | . . . . . . . . 4 1 3 19 . . Prevented . | . . . . . . . . . . . . . . Kills | -11 -10 -9 -8 -7 -6 -5 -4 -4 -4 -4 -3 -3 -2 ------- Run | Yrd Mat Mat Mat Fac Fac Fac Fac Upp Upp Zhi Pro Res Res Combat Hostiles Destroyed 216 | . 4 14 41 9 12 8 24 3 . . 8 87 6 Melee 4 | . . . . . . 1 . . . . . 3 . Guns 29 | . 4 14 1 . . . 3 3 . . 2 2 . Cannons 155 | . . . 40 6 12 6 21 . . . 6 58 6 AOE 26 | . . . . 3 . 1 . . . . . 22 . Classes Destroyed 21 | . 1 5 8 2 1 . 1 . . . 2 1 . Worker 23 | . . 1 . . . 1 6 . . . . 14 1 Builder 15 | . . . 2 . . 1 1 . . . . 11 . Tunneler 2 | . . . 1 . . . 1 . . . . . . Hauler 7 | . . . 4 1 . 1 . . . . . 1 . Recycler 27 | . . 1 4 . 2 1 5 . . . . 12 2 Mechanic 4 | . . . 1 . . . 1 . . . . 2 . Operator 2 | . . . 1 . . . 1 . . . . . . Drone 2 | . . . . . . . . . . . 2 . . Watcher 13 | . . 2 3 . 3 . 2 . . . . 3 . Swarmer 40 | . . 4 15 . . . . . . . 4 15 2 Saboteur 3 | . . . . . . . 2 . . . . 1 . Grunt 76 | . 4 7 14 5 8 5 7 . . . . 26 . Brawler 8 | . . . 1 . . . . . . . . 7 . Duelist 7 | . . . 2 . . . . . . . . 5 . Protector 3 | . . . . . . . . . . . . 3 . Sentry 19 | . . 3 7 . 1 . 3 . . . . 5 . Specialist 3 | . . . . 3 . . . . . . . . . Hunter 15 | . . . 2 . . 1 4 2 . . . 6 . Programmer 37 | . . . . 1 2 2 7 1 . . 2 18 4 Behemoth 3 | . . . . . 1 . 1 . . . . 1 . Samaritan 2 | . . . . . . . . . . . 2 . . Best Kill Streak 24 | . 2 5 7 5 4 3 9 2 . . 4 24 5 Combat Bots Only 7 | . 2 4 5 5 4 3 3 2 . . 4 7 4 Max Kills in Single Turn 3 | . 1 2 2 3 1 2 2 1 . . 1 3 1 Gunslinging . | . . . . . . . . . . . . . . Exploded 3 | . . . . 3 . 1 . . . . . 3 . Melee 1 | . . . . . . 1 . . . . . 1 . Uniques/NPCs Destroyed . | . . . . . . . . . . . . . . Combat | -11 -10 -9 -8 -7 -6 -5 -4 -4 -4 -4 -3 -3 -2 -------- Run | Yrd Mat Mat Mat Fac Fac Fac Fac Upp Upp Zhi Pro Res Res Hostile Shots Fired 1951 | . 21 38 212 18 115 84 371 63 . . 25 695 309 Missed 546 | . 4 14 46 8 45 19 112 17 . . 8 182 91 Damage Taken 23392 | . 191 262 2024 201 1084 935 3948 582 . . 247 8735 5183 Core 3138 | . 34 21 243 9 117 114 488 110 . . 15 529 1458 Absorbed by Shields 5257 | . . . 263 . 321 297 1419 . . . 91 2866 . Reduced by Siege Mode 809 | . . . . . . . . . . . . 235 574 Redirected to Shielding 306 | . . . 99 . 3 69 135 . . . . . . Ignored by Resistances 1213 | . . . 46 . . . . 172 . . 37 958 . Regen/Repaired (Parts) 151 | . . . 151 . . . . . . . . . . Core Remaining (%) 78 | 100 86 94 55 98 86 88 . . . . 46 52 . Volleys Fired 626 | . 18 34 97 12 44 28 127 15 4 12 17 201 17 Largest 4 | . 2 3 3 4 4 4 4 4 1 2 4 4 3 Hottest 264 | . 40 69 144 188 188 184 244 220 94 188 187 264 198 Shots Fired 1805 | . 34 97 290 48 170 91 327 27 4 24 66 584 43 Gun 378 | . 34 96 8 . . . 80 15 4 24 33 84 . Cannon 1392 | . . . 282 48 170 91 247 12 . . 33 466 43 Launcher 35 | . . 1 . . . . . . . . . 34 . Special . | . . . . . . . . . . . . . . Kinetic 1702 | . 34 96 290 48 170 91 323 25 . . 66 516 43 Thermal 68 | . . . . . . . 4 2 4 24 . 34 . Explosive 35 | . . 1 . . . . . . . . . 34 . Electromagnetic . | . . . . . . . . . . . . . . Robot Hit Streak 29 | . 9 11 15 15 10 7 20 7 2 10 9 29 26 Robot Miss Streak 8 | . 3 3 3 2 4 2 5 2 2 1 3 8 2 Penetration Max 2 | . . . . . . . 2 . . . . 1 . Secondary Targets 4 | . 2 2 . . . . . . . . . . . Max Gunslinging Chain 1 | . 1 1 . . . . . . . . . . . Shots Hit Robots 1137 | . 19 60 166 23 107 53 209 18 2 17 33 393 37 Core Hits 543 | . 9 28 74 12 33 26 85 12 1 9 17 223 14 Critical Kills 49 | . . . . . . . . 1 . . 1 47 . Critical Parts Destroyed 59 | . . . . . . . 2 1 . . 2 54 . Critical Strikes 183 | . . . 13 . 4 4 15 3 . . 4 138 2 Meltdown 2 | . . . . . . . . . . . . 2 . Destroy 124 | . . . . . . . 2 2 . . 3 117 . Blast 56 | . . . 13 . 4 4 13 1 . . 1 19 1 Sever 1 | . . . . . . . . . . . . . 1 Melee Attacks 15 | . . . . . . . . . . . . 8 7 Impact . | . . . . . . . . . . . . . . Slashing 15 | . . . . . . . . . . . . 8 7 Piercing . | . . . . . . . . . . . . . . Sneak Attacks 6 | . . . . . . . . . . . . 4 2 Combat Hostiles . | . . . . . . . . . . . . . . Follow-up Attacks . | . . . . . . . . . . . . . . Damage Inflicted 41018 | . 245 902 4229 1211 2977 1747 6854 421 57 581 919 18905 1970 Guns 5212 | . 245 898 107 . . . 1324 228 57 581 484 1288 . Cannons 26141 | . . . 4056 614 2977 1573 5387 193 . . 435 9352 1554 Explosions 8439 | . . 4 . 597 . 134 104 . . . . 7600 . Melee 955 | . . . . . . . . . . . . 547 408 Ramming 271 | . . . 66 . . 40 39 . . . . 118 8 Kinetic 29525 | . 245 898 4163 614 2977 1573 6658 384 . . 919 9540 1554 Thermal 2621 | . . . . 597 . 92 157 37 57 581 . 1100 . Explosive 7541 | . . 4 . . . . . . . . . 7537 . Electromagnetic 105 | . . . . . . 42 . . . . . 63 . Impact . | . . . . . . . . . . . . . . Slashing 955 | . . . . . . . . . . . . 547 408 Piercing . | . . . . . . . . . . . . . . Highest Corruption 30 | . . . . . 2 . 2 2 2 2 2 16 30 Average Corruption 5 | . . . . . 2 . 1 2 2 2 2 7 17 Corruption Purged 2 | . . . . . . . 2 . . . . . . Corruption Blocked 2 | . . . . . . . . . . . . 2 . Effects 132 | . . . . . 1 . 11 8 8 2 7 78 17 Message Errors 26 | . . . . . . . 2 1 2 1 3 14 3 Matter Fused 29 | . . . . . 1 . 2 2 1 1 . 18 4 Heat Flow Errors 13 | . . . . . . . . 2 . . . 10 1 Energy Discharges 8 | . . . . . . . 1 . 2 . 1 4 . Parts Rejected 4 | . . . . . . . . . . . . 4 . Parts Fused 2 | . . . . . . . . . . . . 2 . Data Loss (minor) 22 | . . . . . . . 1 1 2 . 1 16 1 Data Loss (major) 8 | . . . . . . . 3 1 1 . . 3 . Misfires 4 | . . . . . . . 1 1 . . . 2 . Alerts 2 | . . . . . . . 1 . . . . . 1 Misdirections 9 | . . . . . . . . . . . . 4 5 Weapon Failures 5 | . . . . . . . . . . . 2 1 2 Overload Shots . | . . . . . . . . . . . . . . Overflow Damage 1358 | . . . 51 169 27 48 162 . . . 11 809 81 Projectiles 562 | . . . 51 11 27 48 162 . . . 11 171 81 Explosions 568 | . . . . 158 . . . . . . . 410 . Melee 228 | . . . . . . . . . . . . 228 . Knockbacks 168 | . . . 33 . 10 11 36 2 . . 3 60 13 Impact 2 | . . . 1 . . . . . . . . 1 . Kinetic 158 | . . . 30 . 10 11 36 2 . . 3 54 12 Secondary 8 | . . . 2 . . . . . . . . 5 1 Self-Inflicted Damage 1013 | . . . . 55 25 . 5 . . . . 924 4 Shots 16 | . . . . 1 1 . . . . . . 14 . Rammed 37 | . . . 15 . . 2 8 . . . . 10 2 Targets Rammed 42 | . . . 17 . . 3 8 . . . . 12 2 Kicked . | . . . . . . . . . . . . . . Crushed 5 | . . . 2 . . 1 . . . . . 2 . Highest Temperature 389 | . . 7 389 211 188 146 384 81 48 372 . 228 201 Average Temperature 91 | . . 5 108 76 61 39 116 43 28 145 . 48 132 Received Heat Transfer 2923 | . 102 117 636 9 276 188 287 . . . . 1056 252 Effects 9 | . . . 4 . . . 3 . . . . 2 . Interference 8 | . . . 3 . . . 3 . . . . 2 . Damage (minor) 1 | . . . 1 . . . . . . . . . . Siege Activations 25 | . . . . . . . . . . . . 23 2 Total Turns 517 | . . . . . . . . . . . . 473 44 Longest Duration 79 | . . . . . . . . . . . . 79 34 Robots Corrupted . | . . . . . . . . . . . . . . Combat Hostiles . | . . . . . . . . . . . . . . Parts Fried 1 | . . . . . . . . . . . . . 1 Impact Corruptions 1 | . . . . . . . . . . . . 1 . Robots Melted 2 | . . . . . . . . . . . . 2 . Combat Hostiles 2 | . . . . . . . . . . . . 2 . Parts Melted 2 | . . . . . . . . . . . . 2 . Heat Transferred 2200 | . . . . 350 . 50 174 37 74 554 . 961 . Parts Sabotaged 9 | . . . . . . . . . . . . 8 1 Parts Stolen . | . . . . . . . . . . . . . . Parts Stripped . | . . . . . . . . . . . . . . Power Chain Reactions . | . . . . . . . . . . . . . . Alert | -11 -10 -9 -8 -7 -6 -5 -4 -4 -4 -4 -3 -3 -2 ------- Run | Yrd Mat Mat Mat Fac Fac Fac Fac Upp Upp Zhi Pro Res Res Peak Influence 2422 | . 160 504 935 520 440 516 987 . . . . 2422 1577 Initial 1345 | . . 67 136 419 254 179 179 . . . . 150 1345 Average 594 | . 58 295 590 240 320 249 245 . . . . 1172 1407 Maximum Alert Level 5 | . . 2 3 2 2 2 3 . . . . 5 4 Low Security (%) 30 | 100 100 25 7 61 . 49 70 . . . . 2 . Level 1 20 | . . 51 17 . 95 45 10 . . . . 5 . Level 2 14 | . . 23 33 38 4 4 2 . . . . 15 . Level 3 19 | . . . 41 . . . 16 . . . . 34 . Level 4 8 | . . . . . . . . . . . . 18 100 Level 5 6 | . . . . . . . . . . . . 23 . High Security . | . . . . . . . . . . . . . . Max Security . | . . . . . . . . . . . . . . Squads Dispatched 57 | . 1 1 4 2 3 4 10 . . . . 27 5 Investigation 4 | . . . 1 2 . . 1 . . . . . . Extermination 13 | . . . . . 2 1 4 . . . . 6 . Reinforcement 16 | . 1 1 1 . 1 3 1 . . . . 7 1 Assault 21 | . . . 2 . . . 4 . . . . 11 4 Garrison 3 | . . . . . . . . . . . . 3 . Intercept . | . . . . . . . . . . . . . . Searches Triggered . | . . . . . . . . . . . . . . Construction Impeded 6 | . . . . . . 1 . . . . . 5 . Haulers Reinforced 4 | . . . . . 1 1 1 . . . . 1 . Active Scanning Responses . | . . . . . . . . . . . . . . Cargo Convoy Interrupts 2 | . . . . 1 . . . . . . . . 1 Stealth | -11 -10 -9 -8 -7 -6 -5 -4 -4 -4 -4 -3 -3 -2 --------- Run | Yrd Mat Mat Mat Fac Fac Fac Fac Upp Upp Zhi Pro Res Res Distress Signals 22 | . 1 3 4 . 4 . 2 . . . . 6 2 Communications Jammed . | . . . . . . . . . . . . . . Distress Signals . | . . . . . . . . . . . . . . Times Spotted 389 | . 10 20 55 10 16 13 64 3 2 . 8 139 49 Peak Tracking Total 30 | . 3 4 6 7 4 6 20 2 3 . 4 8 30 Tactical Retreats 34 | . . 1 4 1 1 4 3 . . . . 15 5 Traps | -11 -10 -9 -8 -7 -6 -5 -4 -4 -4 -4 -3 -3 -2 ------- Run | Yrd Mat Mat Mat Fac Fac Fac Fac Upp Upp Zhi Pro Res Res Traps Triggered 8 | . . . . . . 1 7 . . . . . . Indirectly 1 | . . . . . . 1 . . . . . . . Trap Hack Attempts . | . . . . . . . . . . . . . . Triggered . | . . . . . . . . . . . . . . Disarmed . | . . . . . . . . . . . . . . Reprogrammed . | . . . . . . . . . . . . . . Reused . | . . . . . . . . . . . . . . Traps Extracted . | . . . . . . . . . . . . . . Installed . | . . . . . . . . . . . . . . Triggered . | . . . . . . . . . . . . . . Machines | -11 -10 -9 -8 -7 -6 -5 -4 -4 -4 -4 -3 -3 -2 ---------- Run | Yrd Mat Mat Mat Fac Fac Fac Fac Upp Upp Zhi Pro Res Res Machines Disabled 63 | . 1 . 3 16 6 12 16 . . 1 . 8 . Max in Single Turn 15 | . 1 . 1 15 3 5 6 . . 1 . 1 . Garrison Access 3 | . . . . 1 . 1 1 . . . . . . Machines Repaired . | . . . . . . . . . . . . . . Machines Dismantled . | . . . . . . . . . . . . . . Machines Sabotaged . | . . . . . . . . . . . . . . Overloaded Fab Kills . | . . . . . . . . . . . . . . Hacking | -11 -10 -9 -8 -7 -6 -5 -4 -4 -4 -4 -3 -3 -2 --------- Run | Yrd Mat Mat Mat Fac Fac Fac Fac Upp Upp Zhi Pro Res Res Machines Accessed 48 | . 2 5 7 5 5 5 8 1 . 8 . 2 . Terminals 25 | . 2 4 5 4 4 2 3 . . . . 1 . Fabricators 4 | . . . . . . 1 3 . . . . . . Repair Stations 2 | . . . 1 . . . . . . . . 1 . Recycling Units 5 | . . 1 1 . 1 1 1 . . . . . . Scanalyzers . | . . . . . . . . . . . . . . Garrison Access 3 | . . . . 1 . 1 1 . . . . . . Total Hacks 159 | . 6 20 33 9 11 11 18 1 . 47 . 3 . Successful 100 | . 2 12 20 4 4 5 5 1 . 47 . . . Failed 59 | . 4 8 13 5 7 6 13 . . . . 3 . Catastrophic 11 | . . 2 . 3 2 2 1 . . . . 1 . Database Lockouts . | . . . . . . . . . . . . . . Manual 49 | . 4 15 15 . 2 4 7 . . . . 2 . Terminals 74 | . 6 15 25 8 8 6 5 . . . . 1 . Fabricators 11 | . . . . . . 3 8 . . . . . . Repair Stations 7 | . . . 5 . . . . . . . . 2 . Recycling Units 15 | . . 5 3 . 3 1 3 . . . . . . Scanalyzers . | . . . . . . . . . . . . . . Garrison Access 4 | . . . . 1 . 1 2 . . . . . . Terminal Hacks 72 | . 1 4 10 3 2 2 2 1 . 47 . . . Record 35 | . . . . . . . . . . 35 . . . Part Schematic 4 | . . . . . . . . . . 4 . . . Robot Analysis 4 | . . . . . . . . . . 4 . . . Prototype ID Bank 10 | . 1 1 3 . . 1 . . . 4 . . . Open Door 1 | . . . . . . . . 1 . . . . . Branch Access Points 2 | . . . 1 . . . 1 . . . . . . Terminal Index 1 | . . . 1 . . . . . . . . . . Alert Level 3 | . . 1 . . . 1 1 . . . . . . Unreport Threat 2 | . . . . 2 . . . . . . . . . Locate Traps 5 | . . 1 2 1 1 . . . . . . . . Dispatch Records 1 | . . . 1 . . . . . . . . . . Registered Components 2 | . . 1 . . 1 . . . . . . . . Registered Prototypes 1 | . . . 1 . . . . . . . . . . Zone Layout 1 | . . . 1 . . . . . . . . . . Fabricator Hacks 2 | . . . . . . 1 1 . . . . . . Network Status 2 | . . . . . . 1 1 . . . . . . Repair Station Hacks 4 | . . . 4 . . . . . . . . . . Scan Component 2 | . . . 2 . . . . . . . . . . Repair 2 | . . . 2 . . . . . . . . . . Recycling Unit Hacks 6 | . . 2 3 . 1 . . . . . . . . Process 2 | . . . 1 . 1 . . . . . . . . Report Inventory 2 | . . 1 1 . . . . . . . . . . Retrieve Matter 1 | . . . 1 . . . . . . . . . . Retrieve Components 1 | . . 1 . . . . . . . . . . . Scanalyzer . | . . . . . . . . . . . . . . Garrison Access Hacks 2 | . . . . 1 . 1 . . . . . . . Seal Access 2 | . . . . 1 . 1 . . . . . . . Unauthorized Hacks 14 | . 1 6 3 . 1 1 2 . . . . . . Terminals 9 | . 1 3 3 . 1 1 . . . . . . . Assimilate 1 | . 1 . . . . . . . . . . . . Botnet 6 | . . 2 2 . 1 1 . . . . . . . Operators 2 | . . 1 1 . . . . . . . . . . Fabricators 2 | . . . . . . . 2 . . . . . . Liberate 1 | . . . . . . . 1 . . . . . . Fabnet 1 | . . . . . . . 1 . . . . . . Repair Stations . | . . . . . . . . . . . . . . Recycling Units 3 | . . 3 . . . . . . . . . . . Monitor 1 | . . 1 . . . . . . . . . . . Reject 1 | . . 1 . . . . . . . . . . . Recyclers 1 | . . 1 . . . . . . . . . . . Scanalyzers . | . . . . . . . . . . . . . . Garrison Access . | . . . . . . . . . . . . . . Data Cores Recovered 1 | . . . 1 . . . . . . . . . . Used . | . . . . . . . . . . . . . . Hacking Detections 35 | . 2 4 6 4 5 4 8 . . . . 2 . Full Trace Events 3 | . . . 1 2 . . . . . . . . . Feedback Events . | . . . . . . . . . . . . . . Feedback Blocked . | . . . . . . . . . . . . . . Robot Schematics Acquired . | . . . . . . . . . . . . . . Robots Built . | . . . . . . . . . . . . . . Authchips . | . . . . . . . . . . . . . . Time . | . . . . . . . . . . . . . . Total Robot Build Rating . | . . . . . . . . . . . . . . Part Schematics Acquired 4 | . . . . . . . . . . 4 . . . Parts Built . | . . . . . . . . . . . . . . Authchips . | . . . . . . . . . . . . . . Time . | . . . . . . . . . . . . . . Total Part Build Rating . | . . . . . . . . . . . . . . Parts Repaired 1 | . . . 1 . . . . . . . . . . Time 88 | . . . 88 . . . . . . . . . . Parts Recycled . | . . . . . . . . . . . . . . Recycled Matter 135 | . . . 108 . 27 . . . . . . . . Retrieved Matter 156 | . . . 156 . . . . . . . . . . Retrieved Components 1 | . . 1 . . . . . . . . . . . Parts Scanalyzed . | . . . . . . . . . . . . . . Part Schematics Acquired . | . . . . . . . . . . . . . . Parts Damaged . | . . . . . . . . . . . . . . Bothacking | -11 -10 -9 -8 -7 -6 -5 -4 -4 -4 -4 -3 -3 -2 ------------ Run | Yrd Mat Mat Mat Fac Fac Fac Fac Upp Upp Zhi Pro Res Res Used RIF Installer . | . . . . . . . . . . . . . . Robots Hacked 2 | . . . . . . . . . . . . 1 1 Non-combat . | . . . . . . . . . . . . . . Combat 2 | . . . . . . . . . . . . 1 1 Robot Hacks Applied . | . . . . . . . . . . . . . . Relay Couplers Released 3 | . . . . . . 2 1 . . . . . . Machine Destruction 3 | . . . . . . 2 1 . . . . . . Fabnet Peak Effective % 3 | . . . . . . . . . . . 3 3 1 Autooverrided 2 | . . . . . . . . . . . . 1 1 Robots Rewired . | . . . . . . . . . . . . . . Allies Hacked . | . . . . . . . . . . . . . . Hacks Repelled . | . . . . . . . . . . . . . . Allies | -11 -10 -9 -8 -7 -6 -5 -4 -4 -4 -4 -3 -3 -2 -------- Run | Yrd Mat Mat Mat Fac Fac Fac Fac Upp Upp Zhi Pro Res Res Total Allies 8 | . 1 . . . . . 5 . . . . 1 1 Largest Group 3 | . 1 1 1 . . . 3 . . . . 1 1 Highest-Rated Group 141 | . 10 10 10 . . . 141 . . . . 75 27 Highest-Rated Ally 75 | . 10 10 10 . . . 54 . . . . 75 27 Total Orders 19 | . . 5 14 . . . . . . . . . . STAY 10 | . . 3 7 . . . . . . . . . . FOLLOW 9 | . . 2 7 . . . . . . . . . . Ally Attacks 23 | . . . . . . . 19 . . . . 4 . Total Damage 801 | . . . . . . . 557 . . . . 244 . Kills 5 | . . . . . . . 5 . . . . . . Allies Corrupted . | . . . . . . . . . . . . . . Allies Melted . | . . . . . . . . . . . . . . Intel | -11 -10 -9 -8 -7 -6 -5 -4 -4 -4 -4 -3 -3 -2 ------- Run | Yrd Mat Mat Mat Fac Fac Fac Fac Upp Upp Zhi Pro Res Res Robot Analysis Total 4 | . . . . . . . . . . 4 . . . Derelict Logs Recovered 1 | . . . . . . . . . 1 . . . . Drone Launches . | . . . . . . . . . . . . . . Drone Recoveries . | . . . . . . . . . . . . . . Exploration | -11 -10 -9 -8 -7 -6 -5 -4 -4 -4 -4 -3 -3 -2 ------------- Run | Yrd Mat Mat Mat Fac Fac Fac Fac Upp Upp Zhi Pro Res Res Turns Passed 13268 | 97 315 517 1843 753 928 940 2644 498 425 273 486 3124 425 Spaces Moved 7475 | 56 150 211 779 448 464 467 1554 378 373 207 371 1576 441 Core 241 | 7 . . . . . . . . . . . 151 83 Treads 3577 | 49 150 211 779 448 464 467 350 . . . . 655 4 Legs . | . . . . . . . . . . . . . . Wheels 3124 | . . . . . . . 1204 378 373 207 371 591 . Hover 185 | . . . . . . . . . . . . 115 70 Flight 348 | . . . . . . . . . . . . 64 284 Fastest Speed 23 | 50 160 160 152 152 152 160 90 90 110 90 110 24 23 Average Speed 131 | 146 160 160 160 152 154 172 136 109 110 90 110 127 40 Slowest Speed 305 | 160 160 160 232 152 160 240 305 110 110 110 110 260 180 Overloaded Moves 147 | . . . . . . . . . . . . 36 111 Propulsion Burnouts . | . . . . . . . . . . . . . . Robots Hopped 3 | . . . . . . . . . . . . . 3 Cave-ins Triggered . | . . . . . . . . . . . . . . Teleports 1 | . . . . . . . . . . . . 1 . Exploration Rate (%) 33 | 4 33 18 66 12 11 11 36 58 56 62 55 35 15 Regions Visited 13 Branch Regions 4 Pre-discovered Areas 3 | . . . . . . . . . . 3 . . . Known Exits Taken 2 | . . . . . . . 1 . . . . 1 . Unknown Exits Taken 11 | 1 1 1 1 1 1 1 . 1 1 1 1 . . Scrap Searched 8 | . . . . . . . . 3 3 . 2 . . Spaces Dug 4 | . . . . . . 1 1 . . . . 2 . Terrain Destroyed 554 | . . 5 58 44 16 57 79 9 . . 15 261 10 Melee . | . . . . . . . . . . . . . . Projectile 238 | . . . 58 8 16 14 51 9 . . 15 57 10 AOE 316 | . . 5 . 36 . 43 28 . . . . 204 . Terrain Rammed . | . . . . . . . . . . . . . . Walls Destroyed . | . . . . . . . . . . . . . . Machines Disabled . | . . . . . . . . . . . . . . Actions | -11 -10 -9 -8 -7 -6 -5 -4 -4 -4 -4 -3 -3 -2 --------- Run | Yrd Mat Mat Mat Fac Fac Fac Fac Upp Upp Zhi Pro Res Res Total 9585 | 68 192 320 1146 492 568 540 1876 436 386 265 408 2250 638 Wait 836 | 1 15 39 165 9 35 27 86 10 3 22 11 295 118 Move 7458 | 55 149 210 778 447 463 466 1553 377 372 206 370 1576 436 Hop 2 | . . . . . . . . . . . . . 2 Pick Up 129 | 6 5 12 26 6 4 7 16 12 2 3 3 26 1 Fast Attach 93 | 6 1 2 4 . . 1 19 2 . 4 . 35 19 Attach 81 | . . 1 10 2 7 6 5 8 . 2 1 28 11 Detach 21 | . . . 1 . . . 2 . . . . 5 13 Swap 131 | . 1 9 25 8 9 . 28 7 1 9 2 32 . Drop 142 | . 3 13 23 8 6 2 22 5 4 7 4 33 12 Fire 626 | . 18 34 97 12 44 28 127 15 4 12 17 201 17 Melee 15 | . . . . . . . . . . . . 8 7 Ram 4 | . . . . . . . 2 . . . . . 2 Kick . | . . . . . . . . . . . . . . Crush 37 | . . . 17 . . 3 6 . . . . 11 . Escape Stasis 10 | . . . . . . . 10 . . . . . . Rewire . | . . . . . . . . . . . . . . Trap . | . . . . . . . . . . . . . . Miscellaneous . | . . . . . . . . . . . . . . Route ------- -11/Scrapyard -10/Materials (discovered 3 exits: *Mat / [*Min x2]) -9/Materials -8/Materials -7/Factory -6/Factory -5/Factory -4/Factory (discovered 3 exits: *Upp x2 / Arm) -4/Upper Caves -4/Upper Caves -4/Zhirov -3/Proximity Caves -3/Research -2/Research History --------- Turn | Location | Event 13 | -11/Scrapyard | Discovered new exit (range 16) 98 | -11/Scrapyard | Entered Materials 255 | -10/Materials | Discovered new exit (range 7) 277 | -10/Materials | Discovered new exit (range 15) 304 | -10/Materials | Build established: Mutant 344 | -10/Materials | Discovered new exit (range 15) 413 | -10/Materials | Entered another Materials area 413 | -9/Materials | Accompanied by 1 ally 413 | -9/Materials | Evolved 2 slots: Utility x1, Weapon x1 714 | -9/Materials | Build established: Gunner 724 | -9/Materials | Discovered new exit (range 13) 930 | -9/Materials | Entered another Materials area 930 | -8/Materials | Accompanied by 1 ally 930 | -8/Materials | Evolved 2 slots: Propulsion x1, Utility x1 1336 | -8/Materials | Build established: Tank 1730 | -8/Materials | First assault squad dispatched 2294 | -8/Materials | Lost 6 parts (1p2n2u1w) 2449 | -8/Materials | Repaired Adv. Assault Cannon 2527 | -8/Materials | Build established: Gunner 2729 | -8/Materials | Discovered new exit (range 5) 2773 | -8/Materials | Entered Factory 2773 | -7/Factory | Evolved 2 slots: Propulsion x1, Weapon x1 3358 | -7/Factory | Discovered new exit (range 15) 3363 | -7/Factory | Cargo convoy interrupted 3526 | -7/Factory | Entered another Factory area 3526 | -6/Factory | Evolved 2 slots: Power x1, Utility x1 4221 | -6/Factory | Spotted B-75 Beast 4263 | -6/Factory | Destroyed B-75 Beast 4382 | -6/Factory | Discovered new exit (range 11) 4454 | -6/Factory | Entered another Factory area 4454 | -5/Factory | Evolved 2 slots: Power x1, Utility x1 5240 | -5/Factory | Lost 4 parts (2n2w) 5251 | -5/Factory | Discovered new exit (range 14) 5394 | -5/Factory | Entered another Factory area 5394 | -4/Factory | Evolved 2 slots: Propulsion x1, Utility x1 6316 | -4/Factory | Lost 10 parts (2p2n2u4w) 6696 | -4/Factory | Identified exit to Upper Caves 6696 | -4/Factory | Identified exit to Armory 6748 | -4/Factory | Build established: Mutant 7695 | -4/Factory | Spotted B-86 Titan 7756 | -4/Factory | Destroyed B-86 Titan 7804 | -4/Factory | Build established: Gunner 7894 | -4/Factory | First assault squad dispatched 8038 | -4/Factory | Entered Upper Caves 8068 | -4/Upper Caves | Core integrity fell below 50% 8101 | -4/Upper Caves | Lost 11 parts (2p5u4w) 8378 | -4/Upper Caves | Build established: Tank 8479 | -4/Upper Caves | Discovered new exit (range 9) 8536 | -4/Upper Caves | Entered another Upper Caves area 8818 | -4/Upper Caves | Learned location of 1 exit from Research 8948 | -4/Upper Caves | Discovered new exit (range 13) 8961 | -4/Upper Caves | Entered Zhirov 8963 | -4/Zhirov | Discovered new exit (range 3) 8980 | -4/Zhirov | Met Zhirov 9000 | -4/Zhirov | Learned location of Quarantine (-2) 9000 | -4/Zhirov | Learned location of Testing (-3) 9000 | -4/Zhirov | Learned location of Command (-1) 9015 | -4/Zhirov | Zhirov requested help retrieving the SGEMP Prototype 9034 | -4/Zhirov | Found Alien Artifact 9034 | -4/Zhirov | Identified Integrated Dissipator 9034 | -4/Zhirov | Installed Integrated Dissipator, increased core heat dissipation (+20) 9180 | -4/Zhirov | Found Alien Artifact 9234 | -4/Zhirov | Entered Proximity Caves 9237 | -3/Proximity Caves | Spotter reported a threat 9672 | -3/Proximity Caves | Discovered new exit (range 10) 9720 | -3/Proximity Caves | Entered Research 9720 | -3/Research | Evolved 2 slots: Propulsion x1, Utility x1 9721 | -3/Research | Identified exit to Research 9998 | -3/Research | Garrison activated, responded to threat 10022 | -3/Research | Lost 3 parts (2u1w) 10076 | -3/Research | Lost 3 parts (3u) 10220 | -3/Research | First assault squad dispatched 10423 | -3/Research | Destroyed 7 combat bots 10752 | -3/Research | Found Fusion Bomb Launcher 10755 | -3/Research | Found Fusion Bomb Launcher 10763 | -3/Research | Found Fusion Bomb Launcher 10894 | -3/Research | Spotted B-86 Titan 11060 | -3/Research | Build established: Scavenger-Tank 11346 | -3/Research | Local machine network offline 11972 | -3/Research | Spotted B-86 Titan 12221 | -3/Research | Destroyed B-86 Titan 12259 | -3/Research | System corruption reached 10% 12302 | -3/Research | Found Hvy. Reactive Plating 12408 | -3/Research | Lost 7 parts (1p3n1u2w) 12564 | -3/Research | Lost 5 parts (1p1n1u2w) 12623 | -3/Research | Identified Transdimensional Reconstructor 12623 | -3/Research | Warped through subspace 12681 | -3/Research | Lost 6 parts (1p4u1w) 12795 | -3/Research | Found Prototype Device 12795 | -3/Research | Identified Exp. Focal Shield 12844 | -3/Research | Entered another Research area 12844 | -2/Research | Evolved 2 slots: Weapon x2 12865 | -2/Research | Build established: Mutant 12873 | -2/Research | Lost 3 parts (1p1n1w) 13035 | -2/Research | Spotted B-90 Cyclops 13055 | -2/Research | Found Prototype Launcher 13055 | -2/Research | Identified Mni. Smartbomb Launcher 13094 | -2/Research | First assault squad dispatched 13095 | -2/Research | System corruption reached 10% 13134 | -2/Research | Lost 3 parts (1p2u) 13208 | -2/Research | Core integrity fell below 50% 13234 | -2/Research | Lost 8 parts (3n3u2w) 13235 | -2/Research | Cargo convoy interrupted 13249 | -2/Research | Spotted Striker 13250 | -2/Research | Core integrity fell below 20% 13254 | -2/Research | System corruption reached 30% 13269 | -2/Research | Destroyed by H-88 Terminator with KE Penetrator Last Messages --------------- 13248_ E-15 Imp unfolds itself. 13249_ P-80 Master resets H-81 Overseer, system corruption cleaned. 13250_ Penetrated by Slug. 13250_ Knocked back. 13251_ Cld. Nuclear Pulse Thruster destroyed. 13252_ Slug penetrates Wall. 13253_ System corrupted: Slammed into ceiling. 13253_ Cld. Nuclear Pulse Thruster destroyed. 13253_ System corrupted by crushing effect (+1). 13255_ System corrupted: Component data lost. 13255_ O-24 Administrator: "IFF HANDSHAKE FAILED. SECURING TERMINAL." 13260_ Adv. Signal Interpreter blown off. 13260_ E-15 Imp destroyed. 13262_ Knocked back. 13264_ Door malfunctions. 13265_ ALERT: Hostiles spotted, dispatching reinforcements to Terminal R008. 13269_ Penetrated by Slug. Map ----- +----------------------------------------------------+ | ??????????????????????????????????????/ %" | | ??????????????????????????????????????? " | | ???????????????????????????????????????? ##### | | ????????????????????????????????????????# ??????# | | ???????????????????????????????????????##+######## | | ???????????????????????????????????????# " | | ???????????????????????????????????????# " | | ???????????????????????????????????????# + | | ???????????????????????????????????????# # | | ???????????????????????????????????????#= """" # | | ??????????????????????????#?????######## """" # | | ??????????????????? ???? ? ?????#""""""# """"" # | | ??????????????????# ? ?????#""S"""# """" # | | ??????????????????? ""G"" ????## """########### | | ???????????????????? " " ????# =#????# | | ????????????????????? ????# #????# | | ?????????????????????? ????? #????# | | ??????????????????????? ??????? ??????# | | ???????????????????????? h ????????? ????????# | | ?????????????############/############+########### | | ???????????? !% | | ???????????? ^ | | ??????????? | | ??????????? | | ??????????? % | | ???????????????## #######@#############/########## | | ??????????????????????? !???????# % #???? | | ?????????????????????# ?????# #???? | | ?????????????????????# #???# ! #???? | | ?????????????????????# k o =#???# #???? | | ?????????????????????# ""T"" #???# #???? | | ?????????????????????# A""""" #???# """ #???? | | ?????????????????????# g #???# """ #???? | | ?????????????????????# #???# """ #???? | | ?????????????????????###u#######???###########???? | | ???????????????????????# ????????????????????????? | | ???????????????????????? ????????????????????????? | | ?????????????????????????????????????????????????? | | ?????????????????????????????????????????????????? | | ?????????????????????????????????????????????????? | | ?????????????????????????????????????????????????? | | ?????????????????????????????????????????????????? | | ?????????????????????????????????????????????????? | | ?????????????????????????????????????????????????? | | ?????????????????????????????????????????????????? | | ?????????????????????????????????????????????????? | | ?????????????????????????????????????????????????? | | ?????????????????????????????????????????????????? | | ?????????????????????????????????????????????????? | | ?????????????????????????????????????????????????? | +----------------------------------------------------+ Best States ------------- Heat Dissipation 142 Energy Generation 85 Energy Capacity 865 Matter Stores 440 Matter Capacity 450 Sight Range 16 Robot Scan Range 16 Terrain Scan Density 10 Jamming Range 12 Power Amplification 30 Base Temperature (-) 200 Corruption Block 20 Armor Coverage 1650 Resistance: KI 40 Resistance: TH 30 Core Shielding 30 Utility Shielding 66 Weapon Shielding 33 Point Defense Rating 240 Weapon Cycling 20 Evasion (%) 65 Targeting Accuracy 11 Launcher Accuracy 30 Recoil Reduction 8 Matter Filtering 30 Kinecelleration 40 Item Schematics ----------------- Assault Drone Bay | -4/Zhirov | Free Exp. Heat Sink | -4/Zhirov | Free Exp. Optical Array | -4/Zhirov | Free Imp. Arc Thrower | -4/Zhirov | Free Robot Schematics ------------------ None Fabricated ------------ Nothing Alien Tech Used ----------------- Integrated Dissipator Transdimensional Reconstructor Achievements -------------- None Challenges ------------ None Game ------ Seed SmallCryofiberMonowheel Manual? 0 Play Time 02:32:59 Cumulative 121.5 hours Start 2024.11.24 @ 00:58:45 End 2024.11.24 @ 03:32:37 Sessions 1 Manual Loads 0 Difficulty Rogue Special Mode None Game No. 66 Rogue 66 Adventurer 0 Explorer 0 Win Type - Total 2 Types 2/0/0/0/0/0/0/0/0 Lore% 43 Gallery% 62 Achievement% 54 Wizard Run 0 Options --------- Layout 1 ASCII 0 Keyboard 0 Movement Mouse Keybinds 0 Fullscreen 1 Font 24/Smallcaps Map View 50x35 Zoom Use 0% Tactical HUD 1 Map Filters NONE Filters NONE Steam 1 RUN: 24fce27a-d7e9-4081-bedc-3f445cfa90a7